bitfinex/quotes_BTCUSD_20241111
["timestamp","ask_amount","ask_price","bid_price","bid_amount"]
[1731297829435,0.12594221,81614.0,81600.0,0.000843]
[1731297829635,0.098027,81610.0,81600.0,0.000843]
[1731297829880,0.12594221,81609.0,81600.0,0.000843]
[1731297831399,0.22397021,81609.0,81600.0,0.000843]
[1731297832109,0.12594221,81609.0,81600.0,0.000843]
[1731297832994,0.1,81622.0,81606.0,0.09803]
[1731297833197,0.14625817,81617.0,81606.0,0.09803]
[1731297833404,0.14625817,81617.0,81600.0,0.23319358]
[1731297833584,0.098021,81615.0,81603.0,0.18361314]
[1731297833943,0.24427717,81617.0,81604.0,0.098033]
[1731297834137,0.098023,81613.0,81603.0,0.18361314]
[1731297834369,0.14625817,81617.0,81603.0,0.18361314]
[1731297834489,0.09802,81616.0,81603.0,0.28164814]
[1731297835269,0.13822259,81610.0,81600.0,0.03711758]
[1731297835578,0.23625059,81610.0,81602.0,0.18361314]
[1731297836350,0.13822259,81610.0,81602.0,0.18361314]
[1731297836748,0.13822259,81610.0,81600.0,0.000843]
[1731297836923,0.098028,81609.0,81600.0,0.000843]
[1731297837351,0.13822259,81610.0,81600.0,0.000843]
[1731297837707,0.13822259,81602.0,81600.0,0.000843]
[1731297838056,0.098032,81606.0,81600.0,0.000843]
[1731297838901,0.196056,81609.0,81600.0,0.000843]
[1731297839106,0.098031,81607.0,81600.0,0.000843]
[1731297839437,0.098038,81601.0,81600.0,0.000843]
[1731297839609,0.30038021,81601.0,81600.0,0.000843]
[1731297842303,0.22398021,81601.0,81600.0,0.000843]
[1731297842752,0.23716634,81601.0,81600.0,0.000843]
[1731297843812,0.13912834,81601.0,81591.0,0.17945614]
[1731297844036,0.098048,81592.0,81591.0,0.17945614]
[1731297844427,0.12594221,81592.0,81590.0,0.000843]
[1731297844627,0.22399221,81591.0,81590.0,0.000843]
[1731297845503,0.12594221,81591.0,81590.0,0.000843]
[1731297845678,0.22399221,81591.0,81590.0,0.000843]
[1731297845912,0.12594221,81591.0,81590.0,0.000843]
[1731297846096,0.13822259,81596.0,81590.0,0.000843]
[1731297846429,0.12594221,81596.0,81590.0,0.000843]
[1731297847464,0.005,81606.0,81591.0,0.18361314]
[1731297847666,0.005,81615.0,81593.0,0.0829]
[1731297847870,0.18361314,81608.0,81599.0,0.09804]
[1731297848075,0.098025,81612.0,81599.0,0.09804]
[1731297848264,0.098025,81612.0,81595.0,0.19609]
[1731297848265,0.098027,81610.0,81597.0,0.098042]
[1731297848477,0.13822259,81598.0,81590.0,0.000843]
[1731297848714,0.13822259,81598.0,81593.0,0.18361314]
[1731297848912,0.13822259,81598.0,81590.0,0.000843]
[1731297849311,0.09804,81599.0,81590.0,0.000843]
[1731297849713,0.196068,81604.0,81590.0,0.000843]
[1731297849920,0.12594221,81603.0,81590.0,0.000843]
[1731297850268,0.098039,81600.0,81590.0,0.000843]
[1731297850441,0.098041,81599.0,81590.0,0.000843]
[1731297851355,0.24125559,81606.0,81591.0,0.1860642]
[1731297851557,0.005,81615.0,81591.0,0.1860642]
[1731297851763,0.13822259,81620.0,81606.0,0.098031]
[1731297851764,0.105,81616.0,81606.0,0.098031]
[1731297852139,0.103021,81615.0,81602.0,0.098036]
[1731297852303,0.005,81615.0,81601.0,0.173437]
[1731297852463,0.005,81615.0,81601.0,0.0754]
[1731297852464,0.09971,81613.0,81601.0,0.0754]
[1731297853445,0.196049,81612.0,81598.0,0.0482]
[1731297853618,0.098027,81610.0,81598.0,0.0482]
[1731297853799,0.098025,81612.0,81600.0,0.18361314]
[1731297853984,0.13990859,81613.0,81600.0,0.18361314]
[1731297854414,0.098026,81611.0,81600.0,0.18361314]
[1731297854617,0.13990859,81613.0,81600.0,0.18361314]
[1731297854857,0.098025,81612.0,81600.0,0.18361314]
[1731297855185,0.098039,81600.0,81595.0,0.0362384]
[1731297855390,0.13822259,81601.0,81594.0,0.18361314]
[1731297855546,0.09804,81599.0,81594.0,0.18361314]
[1731297855768,0.13822259,81601.0,81594.0,0.18361314]
[1731297855938,0.23626059,81601.0,81590.0,0.000843]
[1731297856345,0.005,81607.0,81591.0,0.18361314]
[1731297856557,0.001686,81613.0,81593.0,0.0466]
[1731297856771,0.18361314,81607.0,81599.0,0.098039]
[1731297856975,0.098031,81607.0,81596.0,0.0362384]
[1731297857197,0.098031,81607.0,81594.0,0.21985154]
[1731297857559,0.098028,81609.0,81595.0,0.098044]
[1731297857729,0.098028,81609.0,81594.0,0.21985154]
[1731297857730,0.098028,81609.0,81596.0,0.098043]
[1731297858521,0.098028,81609.0,81597.0,0.098042]
[1731297859060,0.098026,81611.0,81598.0,0.09804]
[1731297859603,0.001686,81613.0,81598.0,0.03626162]
[1731297859804,0.001686,81613.0,81602.0,0.098036]
[1731297859805,0.12762821,81613.0,81602.0,0.098036]
[1731297860086,0.12762821,81613.0,81603.0,0.00245064]
[1731297860392,0.001686,81613.0,81603.0,0.00245064]
[1731297860620,0.001686,81613.0,81605.0,0.18361314]
[1731297860744,0.001686,81613.0,81606.0,0.00245053]
[1731297861134,0.001686,81613.0,81606.0,0.10048053]
[1731297861335,0.001686,81613.0,81606.0,0.00245053]
[1731297861537,0.001686,81613.0,81601.0,0.23233662]
[1731297861744,0.001686,81613.0,81603.0,0.098034]
[1731297861945,0.001686,81613.0,81601.0,0.03626162]
[1731297862177,0.099711,81612.0,81601.0,0.03626162]
[1731297862371,0.001686,81612.0,81601.0,0.03626162]
[1731297862584,0.001686,81612.0,81602.0,0.098036]
[1731297863271,0.001686,81612.0,81603.0,0.098035]
[1731297863706,0.001686,81612.0,81602.0,0.03626162]
[1731297864081,0.001686,81612.0,81603.0,0.098035]
[1731297864551,0.001686,81612.0,81602.0,0.03626162]
[1731297864694,0.001686,81612.0,81602.0,0.13429762]
[1731297865048,0.001686,81612.0,81603.0,0.19852154]
[1731297865250,0.001686,81612.0,81605.0,0.098032]
[1731297865452,0.001686,81612.0,81606.0,0.00245055]
[1731297866108,0.001686,81612.0,81603.0,0.098035]
[1731297866840,0.001686,81612.0,81611.0,0.098026]
[1731297867330,0.001686,81612.0,81611.0,0.13428762]
[1731297868051,0.001686,81612.0,81611.0,0.03626162]
[1731297868259,0.001686,81612.0,81610.0,0.03626162]
[1731297868497,0.001686,81612.0,81611.0,0.13428762]
[1731297868699,0.001686,81612.0,81611.0,0.098026]
[1731297868893,0.001686,81612.0,81607.0,0.44651244]
[1731297868894,0.001686,81612.0,81609.0,0.05439244]
[1731297869118,0.001686,81612.0,81611.0,0.1342717]
[1731297869326,0.001686,81612.0,81611.0,0.13425581]
[1731297869558,0.001686,81612.0,81611.0,0.098026]
[1731297870153,0.001686,81612.0,81609.0,0.13425681]
[1731297870477,0.001686,81612.0,81609.0,0.03622981]
[1731297870617,0.001686,81612.0,81608.0,0.03622981]
[1731297871300,0.13822259,81609.0,81602.0,0.03622981]
[1731297871508,0.13822259,81609.0,81603.0,0.18361314]
[1731297871706,0.13822259,81609.0,81599.0,0.13426881]
[1731297871833,0.13822259,81609.0,81599.0,0.03622981]
[1731297872476,0.20792821,81612.0,81599.0,0.03622981]
[1731297872709,0.20792821,81612.0,81599.0,0.03624236]
[1731297873064,0.098027,81610.0,81599.0,0.03624236]
[1731297873279,0.098028,81609.0,81599.0,0.03624236]
[1731297873447,0.196052,81611.0,81599.0,0.03624236]
[1731297873660,0.196052,81611.0,81597.0,0.05436354]
[1731297873661,0.098029,81609.0,81600.0,0.03624236]
[1731297874064,0.22565321,81612.0,81600.0,0.03624236]
[1731297874273,0.22565321,81612.0,81600.0,0.13673207]
[1731297874565,0.12762821,81612.0,81600.0,0.03624236]
[1731297874962,0.098027,81610.0,81600.0,0.03624236]
[1731297876185,0.22565321,81612.0,81600.0,0.03624236]
[1731297876383,0.12762821,81612.0,81600.0,0.03624236]
[1731297876800,0.22565321,81612.0,81600.0,0.03869305]
[1731297876990,0.12762821,81612.0,81600.0,0.03869305]
[1731297877197,0.12762821,81612.0,81600.0,0.03624236]
[1731297878025,0.098027,81610.0,81600.0,0.03624236]
[1731297878567,0.12762821,81612.0,81600.0,0.03624236]
[1731297878775,0.098028,81609.0,81600.0,0.03624236]
[1731297879507,0.098029,81608.0,81600.0,0.03624236]
[1731297880298,0.001686,81612.0,81601.0,0.196076]
[1731297880497,0.001686,81612.0,81600.0,0.03624236]
[1731297880498,0.18361314,81608.0,81600.0,0.03624236]
[1731297880703,0.12762821,81612.0,81600.0,0.03624236]
[1731297881118,0.09803,81608.0,81600.0,0.03624236]
[1731297881472,0.196054,81610.0,81600.0,0.03624236]
[1731297881643,0.09803,81608.0,81600.0,0.03624236]
[1731297882426,0.098034,81604.0,81597.0,0.05437199]
[1731297882627,0.12762821,81612.0,81597.0,0.05437199]
[1731297882872,0.098036,81603.0,81597.0,0.05437199]
[1731297883126,0.098033,81605.0,81597.0,0.05437199]
[1731297883292,0.098031,81607.0,81597.0,0.15241399]
[1731297883493,0.098032,81606.0,81597.0,0.05437199]
[1731297883735,0.098034,81605.0,81597.0,0.05437199]
[1731297883940,0.098032,81606.0,81597.0,0.05437199]
[1731297885560,0.001686,81612.0,81598.0,0.00245074]
[1731297885671,0.001686,81612.0,81611.0,0.098026]
[1731297886074,0.001686,81612.0,81606.0,0.05437199]
[1731297886255,0.001686,81612.0,81605.0,0.09967199]
[1731297886573,0.098027,81611.0,81605.0,0.05437199]
[1731297886692,0.001686,81612.0,81605.0,0.05437199]
[1731297886693,0.099711,81612.0,81605.0,0.05437199]
[1731297886893,0.099711,81612.0,81604.0,0.05437199]
[1731297887119,0.001686,81612.0,81604.0,0.05437199]
[1731297887325,0.093027,81611.0,81603.0,0.05434566]
[1731297887592,0.001686,81612.0,81602.0,0.05434566]
[1731297887802,0.001686,81612.0,81595.0,0.196088]
[1731297887803,0.001686,81612.0,81601.0,0.05434566]
[1731297887934,0.196054,81610.0,81599.0,0.05434566]
[1731297888160,0.098034,81605.0,81598.0,0.05434566]
[1731297888359,0.13990859,81612.0,81597.0,0.05434566]
[1731297888556,0.098036,81603.0,81598.0,0.05434566]
[1731297888802,0.098036,81603.0,81592.0,0.27418925]
[1731297888803,0.196071,81603.0,81593.0,0.18361314]
[1731297888954,0.098046,81594.0,81593.0,0.18361314]
[1731297889163,0.098046,81594.0,81591.0,0.05518866]
[1731297889521,0.196087,81597.0,81591.0,0.000843]
[1731297889716,0.098045,81595.0,81591.0,0.000843]
[1731297890090,0.196087,81597.0,81591.0,0.000843]
[1731297890305,0.18361314,81601.0,81591.0,0.000843]
[1731297890648,0.098047,81594.0,81591.0,0.000843]
[1731297890982,0.098044,81596.0,81591.0,0.000843]
[1731297891203,0.098048,81592.0,81591.0,0.000843]
[1731297893370,0.098045,81595.0,81591.0,0.000843]
[1731297893550,0.29412,81599.0,81591.0,0.000843]
[1731297893755,0.098043,81597.0,81591.0,0.000843]
[1731297894540,0.1,81603.0,81591.0,0.000843]
[1731297894747,0.098038,81601.0,81592.0,0.10049896]
[1731297894957,0.197736,81612.0,81593.0,0.37970814]
[1731297894958,0.196059,81608.0,81593.0,0.37970814]
[1731297895175,0.18361314,81606.0,81598.0,0.098041]
[1731297895294,0.18361314,81606.0,81595.0,0.03623045]
[1731297895496,0.098034,81604.0,81595.0,0.03623045]
[1731297895756,0.098034,81604.0,81595.0,0.13427545]
[1731297895950,0.098031,81607.0,81597.0,0.0973539]
[1731297896441,0.18361314,81608.0,81595.0,0.13427445]
[1731297896442,0.098033,81605.0,81595.0,0.13427445]
[1731297896643,0.098031,81607.0,81597.0,0.098042]
[1731297896864,0.098033,81605.0,81595.0,0.13427445]
[1731297897416,0.098033,81605.0,81596.0,0.03623045]
[1731297897585,0.18361314,81608.0,81599.0,0.098039]
[1731297897751,0.28164214,81608.0,81599.0,0.098039]
[1731297898151,0.099711,81612.0,81600.0,0.098039]
[1731297898354,0.098026,81611.0,81601.0,0.10048764]
[1731297898706,0.001686,81612.0,81602.0,0.098036]
[1731297899110,0.001686,81612.0,81599.0,0.00245064]
[1731297899315,0.001686,81612.0,81602.0,0.18361314]
[1731297899547,0.001686,81612.0,81605.0,0.03623045]
[1731297899902,0.001686,81612.0,81604.0,0.03623045]
[1731297900819,0.001686,81612.0,81604.0,0.03620827]
[1731297901270,0.09971,81612.0,81604.0,0.03620827]
[1731297901922,0.001686,81612.0,81607.0,0.09803]
[1731297902168,0.001686,81612.0,81604.0,0.03620827]
[1731297902366,0.001686,81612.0,81605.0,0.03620827]
[1731297904276,0.001686,81612.0,81606.0,0.00245056]
[1731297904471,0.001686,81612.0,81607.0,0.196061]
[1731297904677,0.001686,81612.0,81609.0,0.098028]
[1731297904891,0.001686,81612.0,81610.0,0.098027]
[1731297905099,0.001686,81612.0,81608.0,0.10047948]
[1731297905315,0.001686,81612.0,81611.0,0.098026]
[1731297905526,0.001686,81612.0,81610.0,0.075]
[1731297905727,0.001686,81612.0,81609.0,0.03620827]
[1731297905937,0.001686,81612.0,81608.0,0.13423627]
[1731297906145,0.001686,81612.0,81610.0,0.098027]
[1731297906377,0.001686,81612.0,81608.0,0.03620827]
[1731297906551,0.001686,81612.0,81607.0,0.01367656]
[1731297906552,0.001686,81612.0,81607.0,0.14791483]
[1731297906755,0.001686,81612.0,81607.0,0.04988483]
[1731297906965,0.001686,81612.0,81611.0,0.098026]
[1731297907581,0.001686,81612.0,81607.0,0.03620827]
[1731297907820,0.001686,81612.0,81608.0,0.196059]
[1731297908012,0.001686,81612.0,81609.0,0.098028]
[1731297908242,0.001686,81612.0,81610.0,0.098027]
[1731297908543,0.001686,81612.0,81608.0,0.098029]
[1731297908820,0.001686,81612.0,81609.0,0.098027]
[1731297909208,0.001686,81612.0,81607.0,0.13425263]
[1731297909410,0.001686,81612.0,81607.0,0.03622263]
[1731297910039,0.098028,81610.0,81607.0,0.03622263]
[1731297910248,0.001686,81612.0,81605.0,0.03622263]
[1731297910249,0.098026,81611.0,81605.0,0.03622263]
[1731297910736,0.001686,81612.0,81605.0,0.03622263]
[1731297911898,0.001686,81612.0,81606.0,0.098031]
[1731297912105,0.001686,81612.0,81605.0,0.03622263]
[1731297912585,0.001686,81612.0,81605.0,0.13425563]
[1731297912707,0.001686,81612.0,81605.0,0.03622263]
[1731297912900,0.099711,81612.0,81605.0,0.03622263]
[1731297913107,0.001686,81612.0,81604.0,0.01340602]
[1731297913323,0.001686,81612.0,81604.0,0.098033]
[1731297915081,0.001686,81612.0,81610.0,0.03]
[1731297917628,0.001686,81612.0,81611.0,0.17667627]
[1731297917765,0.001686,81612.0,81611.0,0.22537627]
[1731297918455,0.001686,81612.0,81611.0,0.22537623]
[1731297918604,0.001686,81612.0,81611.0,0.224926]
[1731297918948,0.001686,81612.0,81611.0,0.222926]
[1731297919639,0.001686,81612.0,81611.0,0.35131829]
[1731297919841,0.001686,81612.0,81611.0,0.38655636]
[1731297920040,0.001686,81612.0,81611.0,0.34886821]
[1731297920490,0.001686,81612.0,81611.0,0.35086821]
[1731297920789,0.001686,81612.0,81611.0,0.64987032]
[1731297921596,0.001686,81612.0,81611.0,0.51164773]
[1731297921829,0.001686,81612.0,81611.0,0.50964773]
[1731297921994,0.001686,81612.0,81611.0,0.51164773]
[1731297922163,0.001686,81612.0,81611.0,0.50664773]
[1731297922365,0.001686,81612.0,81611.0,0.51164773]
[1731297922797,0.001686,81612.0,81611.0,0.50964773]
[1731297922963,0.001686,81612.0,81611.0,0.51164773]
[1731297923340,0.001686,81612.0,81611.0,0.50664773]
[1731297927143,0.001686,81612.0,81611.0,0.59692536]
[1731297927976,0.001686,81612.0,81611.0,0.59492536]
[1731297928528,0.001686,81612.0,81611.0,0.50464773]
[1731297929738,0.001686,81612.0,81611.0,0.59692536]
[1731297930551,0.001686,81612.0,81611.0,0.50664773]
[1731297931442,0.001686,81612.0,81611.0,0.51154473]
[1731297932028,0.001686,81612.0,81611.0,0.50954473]
[1731297932165,0.001686,81612.0,81611.0,0.58170756]
[1731297932365,0.001686,81612.0,81611.0,0.58370756]
[1731297932565,0.001686,81612.0,81611.0,0.51154473]
[1731297932772,0.001686,81612.0,81611.0,0.50954473]
[1731297933833,0.001686,81612.0,81611.0,0.54562935]
[1731297934260,0.001686,81612.0,81611.0,0.54762935]
[1731297934815,0.001686,81612.0,81611.0,0.54562935]
[1731297935413,0.001686,81612.0,81611.0,0.50954473]
[1731297938388,0.001686,81612.0,81611.0,0.56367072]
[1731297939171,0.001686,81612.0,81611.0,0.50954473]
[1731297939366,0.001686,81612.0,81611.0,0.56367072]
[1731297939910,0.001686,81612.0,81611.0,0.56567072]
[1731297940119,0.001686,81612.0,81611.0,0.51154473]
[1731297940317,0.001686,81612.0,81611.0,0.60182236]
[1731297940557,0.001686,81612.0,81611.0,0.51154473]
[1731297940895,0.001686,81612.0,81611.0,0.50954473]
[1731297941650,0.18361314,81626.0,81624.0,0.007]
[1731297942021,0.18361314,81626.0,81624.0,0.4671748]
[1731297942145,0.0816,81652.0,81624.0,0.36662836]
[1731297942355,0.179577,81652.0,81624.0,0.36662836]
[1731297942591,0.097978,81651.0,81624.0,0.36662836]
[1731297942960,0.0816,81652.0,81624.0,0.36662836]
[1731297943199,0.179577,81652.0,81624.0,0.36662836]
[1731297943774,0.097978,81651.0,81624.0,0.36662836]
[1731297943972,0.179577,81652.0,81624.0,0.36662836]
[1731297944785,0.0816,81652.0,81624.0,0.36662836]
[1731297944991,0.0816,81652.0,81624.0,0.36862836]
[1731297945201,0.0816,81652.0,81624.0,0.36662836]
[1731297945644,0.0816,81652.0,81624.0,0.37969259]
[1731297946487,0.0816,81652.0,81624.0,0.45193947]
[1731297946898,0.179576,81652.0,81624.0,0.45193947]
[1731297947526,0.0816,81652.0,81624.0,0.4519387]
[1731297947727,0.0816,81652.0,81624.0,0.4539387]
[1731297948157,0.0816,81652.0,81624.0,0.4519387]
[1731297948361,0.097978,81651.0,81624.0,0.4519387]
[1731297949015,0.0816,81652.0,81624.0,0.4519387]
[1731297949443,0.13822259,81643.0,81624.0,0.20294204]
[1731297949662,0.0813,81635.0,81624.0,0.14875038]
[1731297949870,0.0813,81635.0,81624.0,0.14721024]
[1731297950628,0.0813,81635.0,81624.0,0.14875942]
[1731297951039,0.0813,81635.0,81624.0,0.18490124]
[1731297951264,0.195998,81634.0,81624.0,0.07382701]
[1731297951473,0.195998,81634.0,81607.0,0.10835106]
[1731297951474,0.25453021,81625.0,81608.0,0.03614182]
[1731297951689,0.098027,81610.0,81607.0,0.18361314]
[1731297951921,0.098028,81609.0,81607.0,0.18361314]
[1731297952287,0.196059,81608.0,81597.0,0.000843]
[1731297952492,0.23626359,81598.0,81597.0,0.000843]
[1731297952608,0.31756359,81598.0,81597.0,0.000843]
[1731297953013,0.179341,81598.0,81597.0,0.000843]
[1731297955580,0.31756359,81598.0,81597.0,0.000843]
[1731297956462,0.179341,81598.0,81597.0,0.000843]
[1731297956994,0.19261903,81598.0,81597.0,0.000843]
[1731297958453,0.0813,81598.0,81597.0,0.000843]
[1731297960014,0.0456,81603.0,81597.0,0.000843]
[1731297960015,0.098038,81601.0,81597.0,0.000843]
[1731297960259,0.098037,81602.0,81597.0,0.000843]
[1731297960377,0.0456,81603.0,81597.0,0.000843]
[1731297960588,0.19264552,81605.0,81597.0,0.000843]
[1731297961274,0.09461152,81605.0,81597.0,0.000843]
[1731297961618,0.098034,81604.0,81597.0,0.000843]
[1731297961827,0.098035,81603.0,81597.0,0.000843]
[1731297962042,0.098038,81601.0,81597.0,0.000843]
[1731297962296,0.196071,81603.0,81597.0,0.000843]
[1731297962611,0.098041,81598.0,81597.0,0.000843]
[1731297962738,0.196073,81602.0,81597.0,0.000843]
[1731297963194,0.13822259,81599.0,81597.0,0.000843]
[1731297963343,0.098041,81598.0,81597.0,0.000843]
[1731297963547,0.13822259,81599.0,81597.0,0.000843]
[1731297963747,0.23626359,81599.0,81597.0,0.000843]
[1731297963989,0.13822259,81599.0,81597.0,0.000843]
[1731297964289,0.098041,81598.0,81597.0,0.000843]
[1731297964932,0.145641,81598.0,81597.0,0.000843]
[1731297968827,0.47898321,81598.0,81597.0,0.000843]
[1731297969374,0.48398321,81598.0,81597.0,0.000843]
[1731297970828,0.325041,81598.0,81597.0,0.000843]
[1731297971057,0.177441,81598.0,81597.0,0.000843]
[1731297971966,0.0794,81598.0,81597.0,0.000843]
[1731297972188,0.1,81604.0,81597.0,0.000843]
[1731297972845,0.098036,81603.0,81597.0,0.000843]
[1731297973021,0.098037,81602.0,81597.0,0.000843]
[1731297973221,0.1,81602.0,81597.0,0.000843]
[1731297973825,0.098039,81600.0,81597.0,0.000843]
[1731297974023,0.098041,81598.0,81597.0,0.000843]
[1731297975016,0.32398321,81598.0,81597.0,0.000843]
[1731297981476,0.48728321,81598.0,81597.0,0.000843]
[1731297981903,0.48528321,81598.0,81597.0,0.000843]
[1731297983426,0.48528321,81598.0,81591.0,0.000843]
[1731297983427,0.108048,81592.0,81591.0,0.000843]
[1731297983631,0.20805,81591.0,81590.0,0.000843]
[1731297983827,0.40479221,81591.0,81590.0,0.000843]
[1731297984086,0.50656129,81591.0,81590.0,0.000843]
[1731297984869,0.09807,81574.0,81573.0,0.001386]
[1731297985082,0.3622348,81574.0,81573.0,0.001386]
[1731297985293,0.4427348,81574.0,81573.0,0.001386]
[1731297986363,0.30451221,81574.0,81573.0,0.001386]
[1731297986575,0.22401221,81574.0,81573.0,0.001386]
[1731297986930,0.33745373,81574.0,81573.0,0.001386]
[1731297987147,0.45195373,81574.0,81573.0,0.001386]
[1731297987854,0.44695373,81574.0,81573.0,0.001386]
[1731297988054,0.42395373,81574.0,81573.0,0.001386]
[1731297988262,0.23938373,81574.0,81573.0,0.001386]
[1731297988727,0.01344152,81574.0,81573.0,0.001386]
[1731297989122,0.09807,81574.0,81573.0,0.001386]
[1731297989325,0.33629259,81574.0,81573.0,0.001386]
[1731297991505,0.1,81579.0,81573.0,0.001386]
[1731297991652,0.18361314,81577.0,81573.0,0.001386]
[1731297991857,0.33629259,81574.0,81573.0,0.001386]
[1731297994077,0.23822259,81574.0,81573.0,0.001386]
[1731297994845,0.33629259,81574.0,81573.0,0.001386]
[1731297996466,0.23629259,81574.0,81573.0,0.001386]
[1731298000830,0.3622348,81574.0,81573.0,0.001386]
[1731298003328,0.6183348,81574.0,81573.0,0.001386]
[1731298003537,0.48011221,81574.0,81573.0,0.001386]
[1731298004137,0.47511221,81574.0,81573.0,0.001386]
[1731298010404,0.12594221,81574.0,81573.0,0.001386]
[1731298010625,0.22401221,81574.0,81573.0,0.001386]
[1731298012074,0.24701221,81574.0,81573.0,0.001386]
[1731298013075,0.22401221,81574.0,81573.0,0.001386]
[1731298013543,0.24701221,81574.0,81573.0,0.001386]
[1731298016816,0.28033192,81574.0,81573.0,0.001386]
[1731298017022,0.24701221,81574.0,81573.0,0.001386]
[1731298020244,0.29301221,81574.0,81573.0,0.001386]
[1731298021400,0.24701221,81574.0,81573.0,0.001386]
[1731298033132,0.35701221,81574.0,81573.0,0.001386]
[1731298033299,0.55669725,81574.0,81573.0,0.001386]
[1731298034258,0.55869725,81574.0,81573.0,0.001386]
[1731298035465,0.43441221,81574.0,81573.0,0.001386]
[1731298037074,0.35201221,81574.0,81573.0,0.001386]
[1731298037940,0.34701221,81574.0,81573.0,0.001386]
[1731298038150,0.35201221,81574.0,81573.0,0.001386]
[1731298038379,0.34701221,81574.0,81573.0,0.001386]
[1731298038661,0.35201221,81574.0,81573.0,0.001386]
[1731298040391,0.34701221,81574.0,81573.0,0.001386]
[1731298040610,0.098066,81578.0,81573.0,0.001386]
[1731298040833,0.12594221,81577.0,81573.0,0.048986]
[1731298041240,0.098067,81577.0,81573.0,0.048986]
[1731298041409,0.196121,81582.0,81573.0,0.048986]
[1731298041410,0.196124,81581.0,81573.0,0.048986]
[1731298041710,0.098066,81578.0,81573.0,0.048986]
[1731298041854,0.098066,81577.0,81573.0,0.048986]
[1731298042061,0.09807,81574.0,81573.0,0.048986]
[1731298042273,0.13822259,81576.0,81573.0,0.048986]
[1731298042467,0.23629059,81576.0,81573.0,0.048986]
[1731298043333,0.09807,81574.0,81573.0,0.048986]
[1731298043532,0.09807,81574.0,81573.0,0.001386]
[1731298046622,0.22401221,81574.0,81573.0,0.001386]
[1731298047938,0.12594221,81574.0,81573.0,0.001386]
[1731298048110,0.22401221,81574.0,81573.0,0.001386]
[1731298049213,0.22401221,81574.0,81573.0,0.001286]
[1731298052476,0.34701221,81574.0,81573.0,0.001286]
[1731298056634,0.35201221,81574.0,81573.0,0.001286]
[1731298058616,0.35401221,81574.0,81573.0,0.001286]
[1731298059050,0.35201221,81574.0,81573.0,0.001286]
[1731298059660,0.35701221,81574.0,81573.0,0.001286]
[1731298059922,0.43251221,81574.0,81573.0,0.001286]
[1731298060168,0.48010021,81574.0,81573.0,0.001286]
[1731298060695,0.48210021,81574.0,81573.0,0.001286]
[1731298061238,0.48010021,81574.0,81573.0,0.001286]
[1731298062017,0.48210021,81574.0,81573.0,0.001286]
[1731298062217,0.48010021,81574.0,81573.0,0.001286]
[1731298063062,0.005,81563.0,81562.0,0.000844]
[1731298063260,0.4902478,81563.0,81562.0,0.000844]
[1731298063889,0.4952478,81563.0,81562.0,0.000844]
[1731298064238,0.4902478,81563.0,81562.0,0.000844]
[1731298064439,0.4952478,81563.0,81562.0,0.000844]
[1731298064999,0.59118513,81563.0,81562.0,0.000844]
[1731298065151,0.72940772,81563.0,81562.0,0.000844]
[1731298065421,0.226092,81556.0,81555.0,0.000542]
[1731298065637,0.4902568,81556.0,81555.0,0.000542]
[1731298068516,0.60331418,81556.0,81555.0,0.000542]
[1731298068723,0.226102,81547.0,81546.0,0.001386]
[1731298068948,0.4902668,81547.0,81546.0,0.001386]
[1731298069842,0.4852668,81547.0,81546.0,0.001386]
[1731298070046,0.4852668,81547.0,81541.0,0.000544]
[1731298070047,0.123,81546.0,81541.0,0.000544]
[1731298070287,0.121108,81542.0,81541.0,0.000544]
[1731298070403,0.24705021,81542.0,81541.0,0.000544]
[1731298070809,0.22405021,81542.0,81541.0,0.000544]
[1731298074576,0.23705021,81542.0,81541.0,0.000544]
[1731298074878,0.26005021,81542.0,81541.0,0.000544]
[1731298077800,0.36505021,81542.0,81541.0,0.000544]
[1731298079198,0.36005021,81542.0,81541.0,0.000544]
[1731298080640,0.33705021,81542.0,81541.0,0.000544]
[1731298081815,0.23894221,81542.0,81541.0,0.000544]
[1731298082037,0.23894221,81542.0,81541.0,0.049544]
[1731298082038,0.013,81542.0,81541.0,0.049544]
[1731298085249,0.013,81542.0,81541.0,0.225254]
[1731298086238,0.013,81542.0,81541.0,0.127144]
[1731298086443,0.013,81542.0,81541.0,0.225254]
[1731298086890,0.13822259,81557.0,81541.0,0.225254]
[1731298086891,0.29240449,81557.0,81541.0,0.127144]
[1731298087148,0.18361314,81548.0,81541.0,0.127144]
[1731298087354,0.4183467,81557.0,81541.0,0.127144]
[1731298087767,0.098093,81555.0,81541.0,0.225252]
[1731298088130,0.098093,81555.0,81542.0,0.098108]
[1731298088748,0.098095,81554.0,81541.0,0.127144]
[1731298089161,0.098092,81556.0,81541.0,0.225253]
[1731298089471,0.098092,81556.0,81542.0,0.098107]
[1731298089770,0.098094,81555.0,81542.0,0.098107]
[1731298090320,0.23524002,81557.0,81541.0,0.127144]
[1731298090786,0.098093,81555.0,81542.0,0.098108]
[1731298090963,0.098095,81553.0,81541.0,0.127144]
[1731298091221,0.23524002,81557.0,81541.0,0.127144]
[1731298091426,0.098093,81555.0,81542.0,0.098108]
[1731298091635,0.098095,81554.0,81541.0,0.127144]
[1731298091843,0.098096,81553.0,81541.0,0.127144]
[1731298092066,0.098093,81555.0,81541.0,0.225253]
[1731298092284,0.18361314,81549.0,81541.0,0.127144]
[1731298092494,0.098108,81542.0,81541.0,0.000544]
[1731298092731,0.22405021,81542.0,81541.0,0.000544]
[1731298093957,0.12594221,81542.0,81541.0,0.000544]
[1731298094908,0.22405021,81542.0,81541.0,0.000544]
[1731298095563,0.22573621,81542.0,81541.0,0.000544]
[1731298096970,0.12762821,81542.0,81541.0,0.000544]
[1731298097173,0.22573621,81542.0,81541.0,0.000544]
[1731298099075,0.12762821,81542.0,81541.0,0.000544]
[1731298100100,0.22573621,81542.0,81541.0,0.000544]
[1731298100324,0.12762821,81542.0,81541.0,0.000544]
[1731298101208,0.001686,81542.0,81541.0,0.000544]
[1731298101993,0.12762821,81542.0,81541.0,0.000544]
[1731298102117,0.22573621,81542.0,81541.0,0.000544]
[1731298103890,0.001686,81542.0,81541.0,0.000544]
[1731298106562,0.099794,81542.0,81541.0,0.000544]